bitfinex/quotes_BTCUSD_20251113
["timestamp","ask_amount","ask_price","bid_price","bid_amount"]
[1763027656782,0.19481784,102660.0,102650.0,0.04864]
[1763027656989,0.19481784,102660.0,102650.0,0.05244]
[1763027657171,0.19481784,102660.0,102650.0,0.05391365]
[1763027657371,0.19481784,102660.0,102650.0,0.07391365]
[1763027657549,0.19481784,102660.0,102650.0,0.05591365]
[1763027658047,0.19481784,102660.0,102650.0,0.05391365]
[1763027658248,0.19481784,102660.0,102650.0,0.07391365]
[1763027658456,0.45102769,102660.0,102650.0,0.07391365]
[1763027658655,0.45102769,102660.0,102650.0,0.03011365]
[1763027658855,0.45102769,102660.0,102650.0,0.05011365]
[1763027659195,0.45102769,102660.0,102650.0,0.03011365]
[1763027659641,0.45102769,102660.0,102650.0,0.03371365]
[1763027659850,0.45102769,102660.0,102650.0,0.01371365]
[1763027660056,0.45102769,102660.0,102650.0,0.03371365]
[1763027660296,0.19481784,102660.0,102650.0,0.00197365]
[1763027660525,0.19481784,102660.0,102650.0,0.03046365]
[1763027660743,0.45102769,102660.0,102650.0,0.24530047]
[1763027660954,0.62449615,102660.0,102650.0,0.24530047]
[1763027661370,0.19481784,102660.0,102650.0,0.26910047]
[1763027663281,0.20543784,102660.0,102650.0,0.25739682]
[1763027663495,0.65061615,102660.0,102650.0,0.25739682]
[1763027663714,0.22093784,102660.0,102650.0,0.25739682]
[1763027664626,0.22093784,102660.0,102650.0,0.23739682]
[1763027664840,0.22093784,102660.0,102650.0,0.25739682]
[1763027665259,0.01062,102660.0,102650.0,0.28588682]
[1763027665530,0.20541948,102670.0,102660.0,0.21481784]
[1763027665704,0.20541948,102670.0,102660.0,0.26710784]
[1763027666716,0.20541948,102670.0,102660.0,0.24710784]
[1763027666943,0.87760593,102690.0,102670.0,0.19479887]
[1763027667162,0.20542762,102690.0,102680.0,0.24942989]
[1763027667338,0.63510593,102690.0,102680.0,0.26942989]
[1763027667583,0.65060593,102690.0,102680.0,0.26942989]
[1763027668294,0.67184593,102690.0,102680.0,0.06256]
[1763027668693,0.67184593,102690.0,102680.0,0.04256]
[1763027668908,0.54278939,102690.0,102680.0,0.25733989]
[1763027669109,0.54278939,102690.0,102680.0,0.06256]
[1763027669520,0.54278939,102690.0,102680.0,0.04256]
[1763027669663,0.54278939,102690.0,102680.0,0.06256]
[1763027670169,0.54278939,102690.0,102680.0,0.25733989]
[1763027670369,0.52154939,102690.0,102680.0,0.25733989]
[1763027670575,0.52154939,102690.0,102680.0,0.28766989]
[1763027670576,0.01066669,102690.0,102680.0,0.28766989]
[1763027670773,0.01066669,102690.0,102680.0,0.30766989]
[1763027671031,0.31128846,102690.0,102680.0,0.30766989]
[1763027671426,0.52265939,102690.0,102680.0,0.24935989]
[1763027671799,0.50604939,102690.0,102680.0,0.28447989]
[1763027672446,0.50604939,102690.0,102680.0,0.30766989]
[1763027673745,0.30066846,102690.0,102680.0,0.30766989]
[1763027673988,4.669e-05,102690.0,102680.0,0.30766989]
[1763027674197,0.30066846,102690.0,102680.0,0.30766989]
[1763027675332,4.669e-05,102690.0,102680.0,0.30766989]
[1763027679805,4.669e-05,102690.0,102680.0,0.28766989]
[1763027680006,4.669e-05,102690.0,102680.0,0.30766989]
[1763027680224,4.669e-05,102690.0,102680.0,0.28766989]
[1763027680425,4.669e-05,102690.0,102680.0,0.30766989]
[1763027683837,0.51203939,102690.0,102680.0,0.26935989]
[1763027684182,0.51203939,102690.0,102680.0,0.30766989]
[1763027684316,0.49542939,102690.0,102680.0,0.30766989]
[1763027684968,0.19480762,102690.0,102680.0,0.09289]
[1763027685230,0.51203939,102690.0,102680.0,0.05458]
[1763027685376,0.53327939,102690.0,102680.0,0.04256]
[1763027686329,0.23265762,102690.0,102680.0,0.04256]
[1763027686472,0.53327939,102690.0,102680.0,0.04256]
[1763027687114,0.53327939,102690.0,102680.0,0.06256]
[1763027687778,0.53327939,102690.0,102680.0,0.04256]
[1763027688178,0.53327939,102690.0,102680.0,0.06256]
[1763027688385,0.53327939,102690.0,102680.0,0.25733989]
[1763027688583,0.51203939,102690.0,102680.0,0.25733989]
[1763027688976,0.51403939,102690.0,102680.0,0.07458]
[1763027689183,0.51403939,102690.0,102680.0,0.25733989]
[1763027689524,0.51403939,102690.0,102680.0,0.05458]
[1763027689730,0.51403939,102690.0,102680.0,0.07458]
[1763027689905,0.51403939,102690.0,102680.0,0.26935989]
[1763027690638,0.30266846,102690.0,102680.0,0.30766989]
[1763027691165,0.49742939,102690.0,102680.0,0.28447989]
[1763027691390,0.49742939,102690.0,102680.0,0.26447989]
[1763027691595,0.49742939,102690.0,102680.0,0.28447989]
[1763027692707,0.19680762,102690.0,102680.0,0.30766989]
[1763027692948,0.49742939,102690.0,102680.0,0.30766989]
[1763027693350,0.4953827,102690.0,102680.0,0.30766989]
[1763027693587,0.30062177,102690.0,102680.0,0.30766989]
[1763027693708,0.50598373,102700.0,102690.0,0.21476093]
[1763027693918,0.22352608,102700.0,102690.0,0.07046936]
[1763027694152,0.52414785,102700.0,102690.0,0.05046936]
[1763027694474,0.86261962,102700.0,102690.0,0.00013936]
[1763027695100,0.84237962,102700.0,102690.0,0.19490029]
[1763027695276,0.84237962,102700.0,102690.0,0.22692029]
[1763027695490,0.84337962,102700.0,102690.0,0.22692029]
[1763027696293,0.64863766,102700.0,102690.0,0.22692029]
[1763027696745,0.02016412,102700.0,102690.0,0.26523029]
[1763027697161,0.32078589,102700.0,102690.0,0.26523029]
[1763027697485,0.26337608,102700.0,102690.0,0.00013936]
[1763027697678,0.86461962,102700.0,102690.0,0.00013936]
[1763027699006,1.20776139,102700.0,102690.0,0.00013936]
[1763027699213,1.26027089,102700.0,102690.0,0.00013936]
[1763027699420,0.68140558,102700.0,102690.0,0.00013936]
[1763027699578,1.67967037,102700.0,102690.0,0.00013936]
[1763027700182,1.58327089,102700.0,102690.0,0.00013936]
[1763027700595,1.58328634,102700.0,102690.0,0.00013936]
[1763027700854,1.28266457,102700.0,102690.0,0.00013936]
[1763027701261,0.26339218,102700.0,102690.0,0.00013936]
[1763027701465,0.84339572,102700.0,102690.0,0.00013936]
[1763027701876,0.86463572,102700.0,102690.0,0.02013936]
[1763027702064,0.26339218,102700.0,102690.0,0.00013936]
[1763027702272,0.86463572,102700.0,102690.0,0.00013936]
[1763027702397,0.54277395,102700.0,102690.0,0.00013936]
[1763027702621,0.21492218,102700.0,102690.0,0.07234936]
[1763027702821,0.51554395,102700.0,102690.0,0.05234936]
[1763027703059,0.22554218,102700.0,102690.0,0.02816936]
[1763027703233,0.82678572,102700.0,102690.0,0.01162936]
[1763027703599,0.84198572,102700.0,102690.0,0.01162936]
[1763027704079,0.22256196,102700.0,102690.0,0.01162936]
[1763027704279,0.8238055,102700.0,102690.0,0.01162936]
[1763027704487,0.8238055,102700.0,102690.0,0.03162936]
[1763027704890,0.8238055,102700.0,102690.0,0.20639029]
[1763027705101,0.31324177,102700.0,102690.0,0.24293029]
[1763027705259,0.31324177,102700.0,102690.0,0.26711029]
[1763027706376,0.50798373,102700.0,102690.0,0.26711029]
[1763027706597,0.30262177,102700.0,102690.0,0.26711029]
[1763027706844,0.49736373,102700.0,102690.0,0.26711029]
[1763027707161,0.49636373,102700.0,102690.0,0.26711029]
[1763027707361,0.30062177,102700.0,102690.0,0.26711029]
[1763027707568,0.49536373,102700.0,102690.0,0.26711029]
[1763027708444,0.30062177,102700.0,102690.0,0.26711029]
[1763027708665,0.30062177,102700.0,102690.0,0.24711029]
[1763027708885,0.30062177,102700.0,102690.0,0.26711029]
[1763027709085,0.20637476,102710.0,102700.0,0.21474196]
[1763027709086,0.50699653,102710.0,102700.0,0.21474196]
[1763027709289,0.50699653,102710.0,102700.0,0.25726196]
[1763027709700,0.30250397,102710.0,102700.0,0.29009196]
[1763027709907,0.30250397,102710.0,102700.0,0.31009196]
[1763027709908,0.49722697,102710.0,102700.0,0.31009196]
[1763027710150,0.49822697,102710.0,102700.0,0.11535]
[1763027710358,0.49822697,102710.0,102700.0,0.31009196]
[1763027710777,0.1986052,102710.0,102700.0,0.31009196]
[1763027710931,0.49922697,102710.0,102700.0,0.31009196]
[1763027711958,0.30450397,102710.0,102700.0,0.31009196]
[1763027712157,0.49922697,102710.0,102700.0,0.31009196]
[1763027712359,0.30450397,102710.0,102700.0,0.31009196]
[1763027712573,0.49534477,102710.0,102700.0,0.29009196]
[1763027712764,0.49534477,102710.0,102700.0,0.31009196]
[1763027713508,0.30062177,102710.0,102700.0,0.28581196]
[1763027713707,0.49534477,102710.0,102700.0,0.28581196]
[1763027713907,0.49534477,102710.0,102700.0,0.31009196]
[1763027714105,0.30062177,102710.0,102700.0,0.31009196]
[1763027714268,0.49534477,102710.0,102700.0,0.31009196]
[1763027714448,0.30062177,102710.0,102700.0,0.31009196]
[1763027714972,0.194723,102710.0,102700.0,0.31009196]
[1763027715180,0.30062177,102710.0,102700.0,0.31009196]
[1763027715813,0.49534477,102710.0,102700.0,0.31009196]
[1763027717098,0.83296654,102710.0,102690.0,0.37714936]
[1763027717311,0.8066055,102700.0,102690.0,0.39714936]
[1763027717712,0.8066055,102700.0,102690.0,0.07414936]
[1763027717962,0.8436055,102700.0,102690.0,0.04265936]
[1763027718169,0.8436055,102700.0,102690.0,0.06265936]
[1763027718377,0.8223655,102700.0,102690.0,0.04265936]
[1763027719053,0.01062,102700.0,102690.0,0.28597029]
[1763027719286,0.8066055,102700.0,102690.0,0.31025029]
[1763027719750,0.24236196,102700.0,102690.0,0.04265936]
[1763027719957,0.8223655,102700.0,102690.0,0.04265936]
[1763027720172,0.8223655,102700.0,102690.0,0.25742029]
[1763027720374,0.8223655,102700.0,102690.0,0.26943029]
[1763027720590,0.61186354,102700.0,102690.0,0.28597029]
[1763027720796,0.49534477,102710.0,102700.0,0.19474196]
[1763027720998,0.49534477,102710.0,102700.0,0.26757196]
[1763027721635,0.49534477,102710.0,102700.0,0.05283]
[1763027721838,0.49534477,102710.0,102700.0,0.02855]
[1763027722031,0.49634477,102710.0,102700.0,0.04855]
[1763027722338,0.49634477,102710.0,102700.0,0.24329196]
[1763027722980,0.87193761,102710.0,102700.0,0.04855]
[1763027723193,0.19474196,102700.0,102690.0,0.05466936]
[1763027723430,0.6455517,102700.0,102690.0,0.27371029]
[1763027723677,0.6455517,102700.0,102690.0,0.31025029]
[1763027724188,0.19474196,102700.0,102690.0,0.31025029]
[1763027724396,0.45080974,102700.0,102690.0,0.31025029]
[1763027725726,0.6455517,102700.0,102690.0,0.29025029]
[1763027725968,0.6455517,102700.0,102690.0,0.31025029]
[1763027726175,0.42012787,102710.0,102700.0,0.19474196]
[1763027726389,0.64553274,102710.0,102700.0,0.22675196]
[1763027727055,0.194723,102710.0,102700.0,0.03201]
[1763027727272,0.64553274,102710.0,102700.0,0.03201]
[1763027727673,0.66129274,102710.0,102700.0,0.03201]
[1763027727932,0.66229274,102710.0,102700.0,0.24329196]
[1763027728146,0.64653274,102710.0,102700.0,0.26757196]
[1763027728416,0.64653274,102710.0,102700.0,0.24329196]
[1763027728894,0.64653274,102710.0,102700.0,0.04855]
[1763027729144,0.211483,102710.0,102700.0,0.02855]
[1763027729336,0.66229274,102710.0,102700.0,0.03201]
[1763027729738,0.88769761,102710.0,102700.0,0.03201]
[1763027729939,0.88769761,102710.0,102700.0,0.01201]
[1763027730661,0.88769761,102710.0,102700.0,0.03201]
[1763027730876,0.19474196,102700.0,102690.0,0.29371029]
[1763027731090,0.6455517,102700.0,102690.0,0.29371029]
[1763027731295,0.6561717,102700.0,102690.0,0.30938029]
[1763027731713,0.6561717,102700.0,102690.0,0.28510029]
[1763027732151,0.6713217,102700.0,102690.0,0.07466936]
[1763027732373,0.6713217,102700.0,102690.0,0.05466936]
[1763027732602,0.6713217,102700.0,102690.0,0.07466936]
[1763027733318,0.6925617,102700.0,102690.0,0.06265936]
[1763027735480,0.6925617,102700.0,102690.0,0.25742029]
[1763027736098,0.6713217,102700.0,102690.0,0.23742029]
[1763027736307,0.6713217,102700.0,102690.0,0.25742029]
[1763027737472,0.22051196,102700.0,102690.0,0.25742029]
[1763027737782,0.6713217,102700.0,102690.0,0.25742029]
[1763027737981,0.01062,102700.0,102690.0,0.30711029]
[1763027738211,0.42012787,102710.0,102700.0,0.21474196]
[1763027738415,0.43838314,102710.0,102700.0,0.21474196]
[1763027738576,0.45353314,102710.0,102700.0,0.21474196]
[1763027739007,0.43527787,102710.0,102700.0,0.21474196]
[1763027739384,0.66068274,102710.0,102700.0,0.21474196]
[1763027740093,0.66168274,102710.0,102700.0,0.21474196]
[1763027740296,0.46695974,102710.0,102700.0,0.22174196]
[1763027740499,0.001,102710.0,102700.0,0.26443196]
[1763027740723,0.42112787,102710.0,102700.0,0.26443196]
[1763027740917,0.45180974,102710.0,102700.0,0.26443196]
[1763027741119,0.64653274,102710.0,102700.0,0.24443196]
[1763027741580,0.66168274,102710.0,102700.0,0.20586065]
[1763027741778,0.66168274,102710.0,102700.0,0.22586065]
[1763027741936,0.68313274,102710.0,102700.0,0.22586065]
[1763027742511,0.026,102730.0,102720.0,0.19470404]
[1763027742782,0.24365765,102730.0,102720.0,0.26422404]
[1763027742903,0.90430248,102730.0,102720.0,0.05385]
[1763027743107,0.92575248,102730.0,102720.0,0.04252]
[1763027743676,0.92575248,102730.0,102720.0,0.06252]
[1763027743841,0.92575248,102730.0,102720.0,0.04252]
[1763027744056,0.92675248,102730.0,102720.0,0.06252]
[1763027744254,0.92675248,102730.0,102720.0,0.25722404]
[1763027744831,0.47006252,102730.0,102720.0,0.30691404]
[1763027745293,0.24465765,102730.0,102720.0,0.30691404]
[1763027746040,0.01925278,102730.0,102720.0,0.30691404]
[1763027746255,0.22640487,102730.0,102720.0,0.30691404]
[1763027746626,0.001,102730.0,102720.0,0.30691404]
[1763027747322,0.001,102730.0,102720.0,0.75772378]
[1763027747481,0.001,102730.0,102720.0,1.08072378]
[1763027747683,0.001,102730.0,102720.0,1.30612865]
[1763027747925,0.001,102730.0,102720.0,1.08072378]
[1763027748270,0.00049079,102730.0,102720.0,1.30612865]
[1763027748593,0.00049079,102730.0,102720.0,1.08272378]
[1763027748805,0.00049079,102730.0,102720.0,1.08172378]
[1763027749132,0.00049079,102730.0,102720.0,1.30812865]
[1763027749769,0.00049079,102730.0,102720.0,1.32486327]
[1763027750173,0.00049079,102730.0,102720.0,2.05449661]
[1763027750376,0.00049079,102730.0,102720.0,4.06402633]
[1763027750576,0.00049079,102730.0,102720.0,4.06602633]
[1763027750752,0.00049079,102730.0,102720.0,3.38981172]
[1763027751661,0.00049079,102730.0,102720.0,4.06602633]
[1763027751975,0.00049079,102730.0,102720.0,3.38981172]
[1763027752178,0.00049079,102730.0,102720.0,3.380282]
[1763027753154,0.00049079,102730.0,102720.0,3.39006243]
[1763027753358,0.00049079,102730.0,102720.0,2.70406739]
[1763027753567,0.00049079,102730.0,102720.0,3.380282]
[1763027754184,0.46192087,102780.0,102760.0,0.19461006]
[1763027754536,0.45080974,102770.0,102760.0,0.24863006]
[1763027754744,0.66359686,102770.0,102760.0,0.29111006]
[1763027754949,0.66359686,102770.0,102760.0,0.30678006]
[1763027755341,0.67921451,102770.0,102760.0,0.05381]
[1763027755555,0.67921451,102770.0,102760.0,0.26843826]
[1763027755790,0.67921451,102770.0,102760.0,0.07381]
[1763027756002,0.92606938,102770.0,102760.0,0.04248]
[1763027756217,0.71328226,102770.0,102760.0,0.06248]
[1763027756430,0.90789158,102770.0,102760.0,0.25710826]
[1763027757119,0.90889158,102770.0,102760.0,0.25710826]
[1763027757341,0.88844158,102770.0,102760.0,0.25710826]
[1763027758310,0.88844158,102770.0,102760.0,0.23710826]
[1763027758565,0.88844158,102770.0,102760.0,0.25710826]
[1763027758810,0.88844158,102770.0,102760.0,0.26843826]
[1763027759038,0.88844158,102770.0,102760.0,0.07381]
[1763027759279,0.00246765,102770.0,102760.0,0.28410826]
[1763027759470,0.00246765,102770.0,102760.0,0.30679826]
[1763027759676,0.45327739,102770.0,102760.0,0.28679826]
[1763027759888,0.45425851,102770.0,102760.0,0.30679826]
[1763027760094,0.00344877,102770.0,102760.0,0.30679826]
[1763027760306,0.00344877,102770.0,102760.0,0.28679826]
[1763027760515,0.22885364,102770.0,102760.0,0.30679826]
[1763027760718,0.22785364,102770.0,102760.0,0.30679826]
[1763027761149,0.00244877,102770.0,102760.0,0.30679826]
[1763027761355,0.00144877,102770.0,102760.0,1.080608]
[1763027761771,0.00144877,102770.0,102760.0,1.081608]
[1763027762170,0.00144877,102770.0,102760.0,1.10957524]
[1763027762313,0.00144877,102770.0,102760.0,1.081608]
[1763027762515,0.00144877,102770.0,102760.0,0.63079826]
[1763027762966,0.00144877,102770.0,102760.0,1.10957524]
[1763027763531,0.00144877,102770.0,102760.0,0.88417037]
[1763027763737,0.00144877,102770.0,102760.0,1.11157524]
[1763027764629,0.00144877,102770.0,102760.0,1.21407524]
[1763027764876,0.00144877,102770.0,102760.0,1.11157524]
[1763027765516,0.00144877,102770.0,102760.0,1.12648497]
[1763027765664,0.00144877,102770.0,102760.0,1.35188984]
[1763027765869,0.00144877,102770.0,102760.0,1.12648497]
[1763027766950,0.00144877,102770.0,102760.0,1.35188984]
[1763027767286,0.00144877,102770.0,102760.0,1.12648497]
[1763027767485,0.00144877,102770.0,102760.0,1.35188984]
[1763027768014,0.00144877,102770.0,102760.0,1.12648497]
[1763027769901,0.00144877,102770.0,102760.0,1.35188984]
[1763027770298,0.00144877,102770.0,102760.0,1.35447317]
[1763027770562,0.00144877,102770.0,102760.0,4.17173181]
[1763027770932,0.00144877,102770.0,102760.0,3.4955172]
[1763027771927,0.00144877,102770.0,102760.0,3.4935172]
[1763027772329,0.00144877,102770.0,102760.0,3.4955172]
[1763027772546,0.00144877,102770.0,102760.0,3.4945172]
[1763027772884,0.00144877,102770.0,102760.0,3.4965172]
[1763027773095,0.00144877,102770.0,102760.0,4.17273181]
[1763027773296,1e-08,102770.0,102760.0,4.17273181]
[1763027773873,1e-08,102770.0,102760.0,4.14218124]
[1763027774917,1e-08,102770.0,102760.0,3.46596663]
[1763027775356,1e-08,102770.0,102760.0,3.6913715]
[1763027775674,1e-08,102770.0,102760.0,3.44596663]
[1763027775840,1e-08,102770.0,102760.0,3.46596663]
[1763027777545,1e-08,102770.0,102760.0,4.14218124]
[1763027777757,1e-08,102770.0,102760.0,3.46596663]
[1763027777980,1e-08,102770.0,102760.0,4.14218124]
[1763027778193,1e-08,102770.0,102760.0,4.15218123]
[1763027778599,1e-08,102770.0,102760.0,4.06455593]
[1763027778801,1e-08,102770.0,102760.0,4.18719105]
[1763027779742,1e-08,102770.0,102760.0,4.16719105]
[1763027779884,1e-08,102770.0,102760.0,4.18719105]
[1763027781170,1e-08,102770.0,102760.0,2.83476183]
[1763027781355,1e-08,102770.0,102760.0,4.18719105]
[1763027783146,1e-08,102770.0,102760.0,3.43460431]
[1763027784291,1e-08,102770.0,102760.0,3.41460431]
[1763027784502,1e-08,102770.0,102760.0,3.71452555]
[1763027784677,1e-08,102770.0,102760.0,3.83702555]
[1763027785341,1e-08,102770.0,102760.0,3.84091802]
[1763027786110,0.0002,102790.0,102780.0,0.19459038]
[1763027786324,0.00034019,102790.0,102780.0,1.00576784]
[1763027786540,0.00034019,102790.0,102780.0,1.02928784]
[1763027786753,0.00034019,102790.0,102780.0,1.04767887]
[1763027787216,0.00034019,102790.0,102780.0,1.00523887]
[1763027787440,0.00034019,102790.0,102780.0,1.04767887]
[1763027787656,0.00034019,102790.0,102780.0,1.09109761]
[1763027788327,0.00034019,102790.0,102780.0,1.41409761]
[1763027788554,0.00034019,102790.0,102780.0,1.4250976]
[1763027788766,0.00034019,102790.0,102780.0,1.4260976]
[1763027790740,0.00034019,102790.0,102780.0,1.4250976]
[1763027791066,0.00034019,102790.0,102780.0,1.4280976]
[1763027791296,0.00034019,102790.0,102780.0,1.4270976]
[1763027791505,0.00034019,102790.0,102780.0,1.4290976]
[1763027791709,1e-08,102790.0,102780.0,3.5115976]
[1763027791915,1e-08,102790.0,102780.0,4.0720694]
[1763027792135,1e-08,102790.0,102780.0,3.94029443]
[1763027792398,1e-08,102790.0,102780.0,3.95418613]
[1763027792766,1e-08,102790.0,102780.0,4.12935908]
[1763027794059,0.0002,102810.0,102800.0,0.57097125]
[1763027794262,0.0002,102810.0,102800.0,3.08167174]
[1763027794485,0.00069022,102810.0,102800.0,3.12272316]
[1763027794685,0.00069022,102810.0,102800.0,3.5251444]
[1763027794893,0.00069022,102810.0,102800.0,3.53491197]
[1763027795105,0.00069022,102810.0,102800.0,3.53591197]
[1763027795747,0.00069022,102810.0,102800.0,3.53691197]
[1763027797071,1e-08,102810.0,102800.0,3.53691197]
[1763027797285,1e-08,102810.0,102800.0,3.54691196]
[1763027797502,1e-08,102810.0,102800.0,3.57746253]
[1763027799327,1e-08,102810.0,102800.0,3.56746254]
[1763027799570,1e-08,102810.0,102800.0,3.57746253]
[1763027799791,1e-08,102810.0,102800.0,3.46496254]
[1763027800011,1e-08,102810.0,102800.0,3.47496253]
[1763027800455,0.0002,102830.0,102800.0,3.58035362]
[1763027800678,0.00034001,102830.0,102820.0,0.87137817]
[1763027800892,0.00034001,102830.0,102820.0,1.56043941]
[1763027801104,0.00034001,102830.0,102820.0,1.59332332]
[1763027801333,0.00083009,102830.0,102820.0,3.5704394]
[1763027801556,0.00083009,102830.0,102820.0,3.60332331]
[1763027801787,0.0002,102840.0,102830.0,0.514417]
[1763027801991,0.0002,102840.0,102830.0,0.564457]
[1763027802205,0.0002,102840.0,102830.0,0.58051383]
[1763027805754,0.0002,102840.0,102830.0,0.26059259]
[1763027806320,0.0002,102840.0,102830.0,0.28059259]
[1763027807083,0.0002,102840.0,102830.0,0.58051383]
[1763027807528,0.00044499,102840.0,102830.0,0.58051383]
[1763027808888,0.30036623,102840.0,102830.0,0.26059259]
[1763027809108,0.00044499,102840.0,102830.0,0.64599259]
[1763027809482,0.00044499,102840.0,102830.0,0.94591383]
[1763027809963,0.00044499,102840.0,102830.0,0.60993576]
[1763027810206,0.00044499,102840.0,102830.0,0.62993576]
[1763027810788,0.00044499,102840.0,102830.0,0.60993576]
[1763027811250,0.00044499,102840.0,102830.0,0.62993576]
[1763027811436,0.00044499,102840.0,102830.0,0.929857]
[1763027816072,0.00044499,102840.0,102830.0,0.96274091]
[1763027816481,0.00044499,102840.0,102830.0,0.929857]
[1763027816855,0.00044499,102840.0,102830.0,0.96274091]
[1763027817260,0.00044499,102840.0,102830.0,0.929857]
[1763027817834,0.00044499,102840.0,102830.0,0.909857]
[1763027818014,0.00044499,102840.0,102830.0,0.929857]
[1763027818171,0.00044499,102840.0,102830.0,0.909857]
[1763027818376,0.00044499,102840.0,102830.0,0.929857]
[1763027820410,0.00044499,102840.0,102830.0,0.909857]
[1763027820656,0.31119623,102840.0,102830.0,0.22083576]
[1763027820895,0.84251432,102840.0,102830.0,0.0424]
[1763027821126,0.84251432,102840.0,102830.0,0.0624]
[1763027821343,0.84251432,102840.0,102830.0,0.0424]
[1763027821547,0.84251432,102840.0,102830.0,0.0624]
[1763027821958,0.02918754,102850.0,102840.0,0.19447685]
[1763027822166,0.02918754,102850.0,102840.0,0.88852809]
[1763027822370,0.02918754,102850.0,102840.0,0.58860685]
[1763027822549,0.50498046,102860.0,102850.0,0.21445794]
[1763027822788,0.51408706,102860.0,102850.0,0.25685794]
[1763027822995,0.51408706,102860.0,102850.0,0.0424]
[1763027822996,0.84830156,102860.0,102850.0,0.0424]
[1763027823176,0.84830156,102860.0,102850.0,0.0624]
[1763027823404,0.8515383,102860.0,102850.0,0.0624]
[1763027823681,0.86975414,102860.0,102850.0,0.0424]
[1763027823936,0.19447685,102840.0,102830.0,0.23661054]
[1763027824137,0.51047809,102840.0,102830.0,0.0624]
[1763027824555,0.53192809,102840.0,102830.0,0.0624]
[1763027824762,0.83184933,102840.0,102830.0,0.0624]
[1763027825099,0.53192809,102840.0,102830.0,0.0624]
[1763027825593,0.83184933,102840.0,102830.0,0.0434]
[1763027825794,0.83184933,102840.0,102830.0,0.0634]
[1763027826133,0.83184933,102840.0,102830.0,0.0434]
[1763027826548,0.83184933,102840.0,102830.0,0.04974]
[1763027826813,0.83184933,102840.0,102830.0,0.001]
[1763027827384,0.19449576,102830.0,102820.0,0.0624]
[1763027827585,0.88007263,102830.0,102820.0,0.0424]
[1763027827759,0.19455252,102800.0,102790.0,0.32273969]
[1763027827942,0.29992124,102800.0,102790.0,0.3852797]
[1763027828133,0.52673484,102810.0,102790.0,0.48849528]
[1763027828336,0.51055376,102800.0,102790.0,0.45271704]
[1763027828577,0.31600124,102800.0,102790.0,0.68828146]
[1763027828845,0.31600124,102800.0,102790.0,0.72406146]
[1763027829051,0.51055376,102800.0,102790.0,0.70406146]
[1763027829251,0.51055376,102800.0,102790.0,0.60734146]
[1763027829657,0.31600124,102800.0,102790.0,0.58734146]
[1763027829860,0.31600124,102800.0,102790.0,0.60734146]
[1763027830665,0.31600124,102800.0,102790.0,0.60834146]
[1763027831133,0.2268136,102810.0,102790.0,0.60834146]
[1763027831134,0.205368,102810.0,102800.0,0.19455252]
[1763027831357,0.50528924,102810.0,102800.0,0.21455252]
[1763027831558,0.54281924,102810.0,102800.0,0.21455252]
[1763027831827,0.01083,102810.0,102800.0,0.21033252]
[1763027832030,0.19451468,102820.0,102800.0,0.53415376]
[1763027832252,0.19451468,102820.0,102810.0,0.2569336]
[1763027832490,0.49443592,102820.0,102810.0,0.2569336]
[1763027832710,0.29992124,102820.0,102810.0,0.2683836]
[1763027832924,0.71305773,102830.0,102810.0,0.2683836]
[1763027833126,0.71305773,102830.0,102820.0,0.02]
[1763027833464,0.19551468,102820.0,102810.0,0.07385]
[1763027833681,0.23204468,102820.0,102810.0,0.0624]
[1763027833909,0.66039748,102820.0,102810.0,0.2569336]
[1763027834651,0.66039748,102820.0,102810.0,0.0424]
[1763027834943,0.66139748,102820.0,102810.0,0.0624]
[1763027835149,0.66139748,102820.0,102810.0,0.0424]
[1763027835358,0.19455252,102800.0,102790.0,0.52916146]
[1763027835562,0.21063252,102800.0,102790.0,0.39699001]
[1763027835774,0.21063252,102800.0,102790.0,0.58011146]
[1763027835975,0.21063252,102800.0,102790.0,0.04254001]
[1763027835976,0.66043532,102800.0,102790.0,0.04254001]
[1763027836185,0.66043532,102800.0,102790.0,0.06254001]
[1763027836812,0.66043532,102800.0,102790.0,0.04254001]
[1763027837018,0.66043532,102800.0,102790.0,0.06354001]
[1763027837421,0.66043532,102800.0,102790.0,0.04354001]
[1763027839652,0.66043532,102800.0,102790.0,0.06254001]
[1763027840273,0.66043532,102800.0,102790.0,0.25711146]
[1763027840468,0.66043532,102800.0,102790.0,0.06254001]
[1763027841023,0.66043532,102800.0,102790.0,0.25711146]
[1763027841276,0.66043532,102800.0,102790.0,0.02014001]
[1763027841480,1.08878812,102800.0,102790.0,0.00014001]
[1763027841719,1.17460686,102800.0,102790.0,0.00014001]
[1763027842203,0.74625406,102800.0,102790.0,0.00014001]
[1763027842618,0.66043532,102800.0,102790.0,0.00014001]
[1763027842859,0.70283532,102800.0,102790.0,0.00014001]
[1763027843068,0.66043532,102800.0,102790.0,0.00014001]
[1763027843689,0.62767819,102800.0,102790.0,0.02014001]
[1763027843909,0.98932406,102800.0,102790.0,0.00014001]
[1763027844125,1.41767686,102800.0,102790.0,0.00014001]
[1763027844948,1.07457168,102800.0,102790.0,0.00014001]
[1763027845965,1.07657168,102800.0,102790.0,0.00014001]
[1763027847185,0.88201916,102800.0,102790.0,0.00014001]
[1763027847388,1.07657168,102800.0,102790.0,0.00014001]
[1763027848352,1.10577792,102800.0,102790.0,0.00014001]
[1763027850940,0.5941775,102800.0,102790.0,0.00014001]
[1763027851161,1.10577792,102800.0,102790.0,0.00014001]
[1763027853634,0.48355897,102800.0,102790.0,0.00014001]
[1763027853835,0.19855252,102800.0,102790.0,0.20673146]
[1763027854041,0.19855252,102800.0,102790.0,0.04846001]
[1763027854282,0.45435273,102800.0,102790.0,0.04846001]
[1763027854481,0.45435273,102800.0,102790.0,0.26605146]
[1763027855061,0.45435273,102800.0,102790.0,0.03216001]
[1763027855275,0.45435273,102800.0,102790.0,0.01216001]
[1763027856121,0.45035273,102800.0,102790.0,0.01216001]
[1763027856725,0.45035273,102800.0,102790.0,0.03216001]
[1763027856932,0.45035273,102800.0,102790.0,0.01216001]
[1763027857077,0.45035273,102800.0,102790.0,0.03216001]
[1763027857867,0.45035273,102800.0,102790.0,0.22303146]
[1763027858070,0.45035273,102800.0,102790.0,0.24303146]
[1763027858279,0.19455252,102800.0,102790.0,0.26605146]
[1763027858954,0.45035273,102800.0,102790.0,0.26605146]
[1763027859532,0.45035273,102800.0,102790.0,0.07148001]
[1763027859884,0.1945507,102810.0,102790.0,0.24303146]
[1763027860088,0.4985553,102810.0,102800.0,0.04244]
[1763027860995,0.69267751,102810.0,102800.0,0.04244]
[1763027861639,0.69267751,102810.0,102800.0,0.23699252]
[1763027861878,0.69267751,102810.0,102800.0,0.25699252]
[1763027861879,0.69266041,102810.0,102800.0,0.25699252]
[1763027862085,0.69266041,102810.0,102800.0,0.06244]
[1763027862647,0.69466041,102810.0,102800.0,0.06244]
[1763027862982,0.50037051,102810.0,102800.0,0.25699252]
[1763027863189,0.50037051,102810.0,102800.0,0.27631252]
[1763027863190,0.002,102810.0,102800.0,0.27631252]
[1763027863388,0.002,102810.0,102800.0,0.29631252]
[1763027864400,0.002,102810.0,102800.0,0.55194504]